[Event "Early-Titled-Tuesday-Blitz-January-16-2024"]
[Site "Chess.com"]
[Date "2024.01.16"]
[Round "1"]
[White "Zohid6"]
[Black "emeli_chess"]
[Result "1/2-1/2"]
[WhiteElo "2830"]
[BlackElo "2462"]
[TimeControl "180+1"]
[EndTime "8:09:44 PST"]
[Termination "Game drawn by agreement"]

1. e4 {[%clk 0:03:00.9]} 1... e5 {[%clk 0:02:58.2]} 2. Nf3 {[%clk 0:03:00.4]}
2... Nc6 {[%clk 0:02:58.4]} 3. Nc3 {[%clk 0:02:58.2]} 3... Nf6 {[%clk
0:02:57.8]} 4. a3 {[%clk 0:02:58.3]} 4... d5 {[%clk 0:02:54.9]} 5. exd5 {[%clk
0:02:59.2]} 5... Nxd5 {[%clk 0:02:55]} 6. Bb5 {[%clk 0:02:59.7]} 6... Nxc3
{[%clk 0:02:38.5]} 7. bxc3 {[%clk 0:03:00.6]} 7... Bd6 {[%clk 0:02:33.6]} 8. d4
{[%clk 0:02:59.7]} 8... exd4 {[%clk 0:02:29.7]} 9. O-O {[%clk 0:02:59.4]} 9...
O-O {[%clk 0:02:28]} 10. cxd4 {[%clk 0:02:59.4]} 10... a6 {[%clk 0:02:22]} 11.
Bd3 {[%clk 0:02:58.9]} 11... Bg4 {[%clk 0:02:18.8]} 12. c3 {[%clk 0:02:58.5]}
12... Re8 {[%clk 0:02:08.6]} 13. h3 {[%clk 0:02:58.1]} 13... Bh5 {[%clk
0:02:08]} 14. Bc2 {[%clk 0:02:55.9]} 14... Bg6 {[%clk 0:02:07.1]} 15. a4 {[%clk
0:02:48.1]} 15... Bxc2 {[%clk 0:02:05]} 16. Qxc2 {[%clk 0:02:49]} 16... Qf6
{[%clk 0:01:51.3]} 17. Rb1 {[%clk 0:02:47.9]} 17... b6 {[%clk 0:01:49.3]} 18.
Qa2 {[%clk 0:02:43.4]} 18... a5 {[%clk 0:01:45.3]} 19. Bg5 {[%clk 0:02:27]}
19... Qg6 {[%clk 0:01:41.8]} 20. Rbe1 {[%clk 0:02:23.6]} 20... h6 {[%clk
0:01:36.6]} 21. Bd2 {[%clk 0:02:10.1]} 21... Qf5 {[%clk 0:01:16.2]} 22. Qc4
{[%clk 0:02:06.4]} 22... Ne7 {[%clk 0:01:12.3]} 23. Ne5 {[%clk 0:02:00.4]} 23...
Ng6 {[%clk 0:01:02.1]} 24. f4 {[%clk 0:01:59.6]} 24... Bxe5 {[%clk 0:00:45.4]}
25. fxe5 {[%clk 0:01:58.9]} 25... Qd7 {[%clk 0:00:45.4]} 26. Rf2 {[%clk
0:01:55.7]} 26... c6 {[%clk 0:00:42.1]} 27. Ref1 {[%clk 0:01:55.2]} 27... Re6
{[%clk 0:00:41.7]} 28. Bc1 {[%clk 0:01:34.5]} 28... Ra7 {[%clk 0:00:40.9]} 29.
Ba3 {[%clk 0:01:31.5]} 29... Qd5 {[%clk 0:00:40.6]} 30. Qxd5 {[%clk 0:01:21.9]}
30... cxd5 {[%clk 0:00:40.4]} 31. Bd6 {[%clk 0:01:22.7]} 31... f6 {[%clk
0:00:36.8]} 32. Rb2 {[%clk 0:01:02.3]} 32... fxe5 {[%clk 0:00:36.4]} 33. Rxb6
{[%clk 0:01:01.9]} 33... exd4 {[%clk 0:00:33.7]} 34. cxd4 {[%clk 0:01:02.8]}
34... Rd7 {[%clk 0:00:30.9]} 35. Bc5 {[%clk 0:01:02.5]} 35... Rxb6 {[%clk
0:00:21.7]} 36. Bxb6 {[%clk 0:01:03.4]} 36... Re7 {[%clk 0:00:17.1]} 37. Rb1
{[%clk 0:01:00.2]} 37... Re2 {[%clk 0:00:16.6]} 38. Bxa5 {[%clk 0:00:40.4]}
38... Ra2 {[%clk 0:00:15]} 39. Rb4 {[%clk 0:00:36.1]} 39... Nf4 {[%clk
0:00:14.9]} 40. Bc7 {[%clk 0:00:35.8]} 40... Nxg2 {[%clk 0:00:14.3]} 41. Rb3
{[%clk 0:00:32.3]} 41... Ne1 {[%clk 0:00:12.8]} 42. a5 {[%clk 0:00:30.6]} 42...
Nc2 {[%clk 0:00:11.9]} 43. Be5 {[%clk 0:00:28.6]} 43... Rxa5 {[%clk 0:00:10.3]}
44. Rb8+ {[%clk 0:00:28.5]} 44... Kf7 {[%clk 0:00:09.7]} 45. Rb7+ {[%clk
0:00:29]} 45... Ke6 {[%clk 0:00:09.8]} 46. Rxg7 {[%clk 0:00:29.3]} 46... Ra4
{[%clk 0:00:09.4]} 47. Rg6+ {[%clk 0:00:27]} 47... Kf5 {[%clk 0:00:09.6]} 48.
Rf6+ {[%clk 0:00:27.6]} 48... Ke4 {[%clk 0:00:09.2]} 49. Rf4+ {[%clk 0:00:27.2]}
49... Ke3 {[%clk 0:00:09.6]} 50. Rh4 {[%clk 0:00:19.5]} 50... Nxd4 {[%clk
0:00:09.3]} 51. Bxd4+ {[%clk 0:00:18.9]} 51... Rxd4 {[%clk 0:00:08.7]} 52. Rxh6
{[%clk 0:00:19.3]} 52... Kf3 {[%clk 0:00:09.1]} 53. Rf6+ {[%clk 0:00:18]} 53...
Kg3 {[%clk 0:00:09.2]} 54. Rg6+ {[%clk 0:00:18.7]} 54... Kxh3 {[%clk 0:00:09.1]}
55. Kf2 {[%clk 0:00:19.5]} 55... Rd3 {[%clk 0:00:08.7]} 56. Ke2 {[%clk
0:00:19.9]} 56... Rg3 {[%clk 0:00:08.5]} 57. Rd6 {[%clk 0:00:19.6]} 57... Rg5
{[%clk 0:00:07.9]} 58. Kf3 {[%clk 0:00:20.1]} 58... Kh4 {[%clk 0:00:07.3]} 59.
Kf4 {[%clk 0:00:20.6]} 59... Rg4+ {[%clk 0:00:07.3]} 60. Kf5 {[%clk 0:00:19.9]}
60... Rg5+ {[%clk 0:00:07.6]} 61. Kf4 {[%clk 0:00:18]} 61... Rg4+ {[%clk
0:00:07.9]} 62. Kf3 {[%clk 0:00:18.7]} 62... Rg3+ {[%clk 0:00:08.3]} 63. Kf2
{[%clk 0:00:18.4]} 63... Rg5 {[%clk 0:00:08.4]} 64. Rd8 {[%clk 0:00:18.6]} 64...
Kg4 {[%clk 0:00:08.4]} 65. Ke3 {[%clk 0:00:19]} 65... Re5+ {[%clk 0:00:08]} 66.
Kd4 {[%clk 0:00:19.1]} 66... Re4+ {[%clk 0:00:08.3]} 67. Kxd5 {[%clk 0:00:19.3]}
67... Rf4 {[%clk 0:00:08.7]} 68. Rg8+ {[%clk 0:00:19.2]} 68... Kf3 {[%clk
0:00:08.9]} 69. Ke5 {[%clk 0:00:18.8]} 69... Re4+ {[%clk 0:00:09]} 70. Kd5
{[%clk 0:00:19]} 70... Rf4 {[%clk 0:00:09.4]} 71. Ra8 {[%clk 0:00:19.3]} 71...
Rf5+ {[%clk 0:00:09.4]} 72. Ke6 {[%clk 0:00:19.8]} 72... Rf4 {[%clk 0:00:09.6]}
73. Ke5 {[%clk 0:00:19.4]} 73... Re4+ {[%clk 0:00:09.7]} 74. Kd5 {[%clk
0:00:20]} 74... Rf4 {[%clk 0:00:09.9]} 75. Ra3+ {[%clk 0:00:20.3]} 75... Kg4
{[%clk 0:00:10]} 76. Ke5 {[%clk 0:00:20.9]} 76... Rf5+ {[%clk 0:00:10.1]} 77.
Ke6 {[%clk 0:00:21.5]} 77... Rf4 {[%clk 0:00:10.4]} 78. Ra1 {[%clk 0:00:21.8]}
78... Rf3 {[%clk 0:00:10.4]} 79. Kd5 {[%clk 0:00:21.6]} 79... Kg3 {[%clk
0:00:10.3]} 80. Ke4 {[%clk 0:00:21.4]} 80... Rf4+ {[%clk 0:00:10.4]} 81. Ke5
{[%clk 0:00:21.8]} 81... Rf3 {[%clk 0:00:10.7]} 82. Ra8 {[%clk 0:00:21.9]} 82...
Re3+ {[%clk 0:00:10.6]} 83. Kd4 {[%clk 0:00:22.4]} 83... Rf3 {[%clk 0:00:10.7]}
84. Rg8+ {[%clk 0:00:22.7]} 84... Kf2 {[%clk 0:00:10.4]} 85. Rg7 {[%clk
0:00:22.7]} 85... Rf4+ {[%clk 0:00:09.8]} 86. Kd3 {[%clk 0:00:23.2]} 86... Kf3
{[%clk 0:00:10]} 87. Rg8 {[%clk 0:00:23.3]} 87... Rf7 {[%clk 0:00:09.8]} 1/2-1/2

[Event "Early-Titled-Tuesday-Blitz-January-16-2024"]
[Site "Chess.com"]
[Date "2024.01.16"]
[Round "1"]
[White "Artemiki"]
[Black "Elsa167"]
[Result "1-0"]
[WhiteElo "2472"]
[BlackElo "2829"]
[TimeControl "180+1"]
[EndTime "8:10:08 PST"]
[Termination "Artemiki won by resignation"]

1. e4 {[%clk 0:03:00.9]} 1... e6 {[%clk 0:02:58.7]} 2. b3 {[%clk 0:02:58.5]}
2... d5 {[%clk 0:02:58]} 3. Bb2 {[%clk 0:02:58.1]} 3... Nc6 {[%clk 0:02:51.7]}
4. exd5 {[%clk 0:02:44.1]} 4... exd5 {[%clk 0:02:51]} 5. Nf3 {[%clk 0:02:44]}
5... Nf6 {[%clk 0:02:50.1]} 6. Bb5 {[%clk 0:02:23.6]} 6... Bd6 {[%clk
0:02:48.4]} 7. Qe2+ {[%clk 0:02:13.9]} 7... Be6 {[%clk 0:02:48]} 8. Nd4 {[%clk
0:02:07.9]} 8... O-O {[%clk 0:02:20.5]} 9. Nxe6 {[%clk 0:02:04]} 9... fxe6
{[%clk 0:02:19.8]} 10. Qxe6+ {[%clk 0:01:59]} 10... Kh8 {[%clk 0:02:19.9]} 11.
O-O {[%clk 0:01:58.9]} 11... Nb4 {[%clk 0:01:55.8]} 12. Na3 {[%clk 0:01:44.8]}
12... c6 {[%clk 0:01:54.3]} 13. Bd3 {[%clk 0:01:41.6]} 13... Qc7 {[%clk
0:01:32.1]} 14. Qh3 {[%clk 0:01:34.9]} 14... Be5 {[%clk 0:01:20.4]} 15. Bxe5
{[%clk 0:01:25.6]} 15... Qxe5 {[%clk 0:01:21.3]} 16. c3 {[%clk 0:01:25]} 16...
Nxd3 {[%clk 0:01:12.9]} 17. Qxd3 {[%clk 0:01:25.9]} 17... Rae8 {[%clk
0:01:13.7]} 18. Nc2 {[%clk 0:01:25]} 18... Ng4 {[%clk 0:01:08.2]} 19. Qg3 {[%clk
0:00:41.8]} 19... Qxg3 {[%clk 0:00:43.6]} 20. fxg3 {[%clk 0:00:38.4]} 20...
Rxf1+ {[%clk 0:00:41.8]} 21. Rxf1 {[%clk 0:00:39.3]} 21... Kg8 {[%clk
0:00:41.6]} 22. Re1 {[%clk 0:00:38.8]} 22... Rxe1+ {[%clk 0:00:29.1]} 23. Nxe1
{[%clk 0:00:39.7]} 23... Kf7 {[%clk 0:00:29.1]} 24. h3 {[%clk 0:00:39.8]} 24...
Nf6 {[%clk 0:00:29.6]} 25. d3 {[%clk 0:00:33.2]} 25... Ke6 {[%clk 0:00:29]} 26.
Kf2 {[%clk 0:00:32.6]} 26... c5 {[%clk 0:00:18.4]} 27. Ke3 {[%clk 0:00:30.9]}
27... b5 {[%clk 0:00:18.4]} 28. Nf3 {[%clk 0:00:28]} 28... h6 {[%clk 0:00:17.5]}
29. a3 {[%clk 0:00:19.4]} 29... a5 {[%clk 0:00:17.8]} 30. g4 {[%clk 0:00:16.9]}
30... g5 {[%clk 0:00:15.2]} 31. Nd2 {[%clk 0:00:15.2]} 31... Ke5 {[%clk
0:00:07.4]} 32. a4 {[%clk 0:00:12.4]} 32... b4 {[%clk 0:00:04.5]} 33. c4 {[%clk
0:00:10.9]} 33... d4+ {[%clk 0:00:03.1]} 34. Kf3 {[%clk 0:00:09.1]} 34... Nd7
{[%clk 0:00:02]} 35. Ne4 {[%clk 0:00:08.8]} 35... Ke6 {[%clk 0:00:02.6]} 36. g3
{[%clk 0:00:07.7]} 36... Ne5+ {[%clk 0:00:03.1]} 37. Ke2 {[%clk 0:00:08.1]}
37... Nd7 {[%clk 0:00:04]} 38. h4 {[%clk 0:00:05.9]} 38... gxh4 {[%clk
0:00:02.8]} 39. gxh4 {[%clk 0:00:06.8]} 39... Ke5 {[%clk 0:00:03.3]} 40. g5
{[%clk 0:00:05.3]} 40... hxg5 {[%clk 0:00:04.2]} 41. hxg5 {[%clk 0:00:05.8]}
41... Kf5 {[%clk 0:00:04.9]} 42. Kd2 {[%clk 0:00:05.2]} 42... Kg6 {[%clk
0:00:04.8]} 43. Ke2 {[%clk 0:00:04.6]} 43... Kf5 {[%clk 0:00:05.4]} 44. Nd6+
{[%clk 0:00:04.4]} 44... Kxg5 {[%clk 0:00:05.2]} 45. Nb7 {[%clk 0:00:05.3]}
45... Nf6 {[%clk 0:00:03.9]} 46. Nxa5 {[%clk 0:00:05.4]} 46... Kf5 {[%clk
0:00:02.2]} 47. Nb7 {[%clk 0:00:05.7]} 47... Nd7 {[%clk 0:00:02.8]} 48. a5
{[%clk 0:00:05.7]} 48... Ke6 {[%clk 0:00:01.7]} 49. a6 {[%clk 0:00:05.4]} 49...
Nb6 {[%clk 0:00:01.9]} 50. Nxc5+ {[%clk 0:00:05.4]} 50... Kd6 {[%clk 0:00:02.5]}
51. Ne4+ {[%clk 0:00:05.2]} 51... Kc6 {[%clk 0:00:03.1]} 52. Ng5 {[%clk
0:00:03.2]} 52... Nd7 {[%clk 0:00:02.9]} 53. Ne6 {[%clk 0:00:03.1]} 53... Kb6
{[%clk 0:00:03]} 54. Nxd4 {[%clk 0:00:03.1]} 54... Nc5 {[%clk 0:00:03.8]} 55.
Kd2 {[%clk 0:00:02.3]} 55... Kxa6 {[%clk 0:00:04.3]} 56. Kc2 {[%clk 0:00:02.8]}
56... Kb6 {[%clk 0:00:05]} 57. Ne2 {[%clk 0:00:03.3]} 57... Ne6 {[%clk 0:00:05]}
58. d4 {[%clk 0:00:03.7]} 58... Ng5 {[%clk 0:00:05.1]} 59. Kd3 {[%clk 0:00:04]}
59... Nf3 {[%clk 0:00:05.7]} 60. Nf4 {[%clk 0:00:04]} 60... Ne1+ {[%clk
0:00:04.1]} 61. Ke3 {[%clk 0:00:02.6]} 61... Nc2+ {[%clk 0:00:04.3]} 62. Ke4
{[%clk 0:00:02.6]} 62... Na1 {[%clk 0:00:04.3]} 63. Nd5+ {[%clk 0:00:02.6]}
63... Ka5 {[%clk 0:00:05]} 64. c5 {[%clk 0:00:02.3]} 64... Kb5 {[%clk
0:00:03.7]} 65. Nxb4 {[%clk 0:00:01.7]} 65... Nxb3 {[%clk 0:00:02.1]} 66. Nd3
{[%clk 0:00:02.2]} 66... Na5 {[%clk 0:00:01.3]} 67. Ke5 {[%clk 0:00:02.7]} 67...
Nc6+ {[%clk 0:00:01.8]} 68. Kd5 {[%clk 0:00:03.4]} 68... Na5 {[%clk 0:00:01.8]}
69. Kd6 {[%clk 0:00:04]} 69... Nb7+ {[%clk 0:00:02.1]} 70. Ke6 {[%clk
0:00:04.1]} 70... Kc4 {[%clk 0:00:02.2]} 71. d5 {[%clk 0:00:04.3]} 71... Kxd3
{[%clk 0:00:01.8]} 72. c6 {[%clk 0:00:04.6]} 72... Nc5+ {[%clk 0:00:02.4]} 73.
Kd6 {[%clk 0:00:05.1]} 73... Kd4 {[%clk 0:00:03.1]} 74. c7 {[%clk 0:00:05.1]}
74... Ne4+ {[%clk 0:00:02.6]} 75. Ke7 {[%clk 0:00:05.3]} 75... Nc3 {[%clk
0:00:02.5]} 76. c8=Q {[%clk 0:00:05.2]} 76... Nxd5+ {[%clk 0:00:03.4]} 77. Kd8
{[%clk 0:00:05.7]} 77... Ke5 {[%clk 0:00:03.6]} 78. Qc1 {[%clk 0:00:06.1]} 78...
Kd6 {[%clk 0:00:03.8]} 79. Qd2 {[%clk 0:00:06.2]} 79... Kc6 {[%clk 0:00:03.9]}
80. Qd4 {[%clk 0:00:06.4]} 80... Kd6 {[%clk 0:00:04.8]} 81. Kc8 {[%clk
0:00:06.7]} 81... Kc6 {[%clk 0:00:05.2]} 82. Qa4+ {[%clk 0:00:06.5]} 82... Kd6
{[%clk 0:00:05.3]} 83. Kb7 {[%clk 0:00:07.2]} 83... Kc5 {[%clk 0:00:05.6]} 84.
Qc6+ {[%clk 0:00:07.5]} 84... Kd4 {[%clk 0:00:05.9]} 85. Qh6 {[%clk 0:00:07.3]}
85... Kc5 {[%clk 0:00:05.9]} 86. Qf8+ {[%clk 0:00:07.4]} 86... Kd4 {[%clk
0:00:06]} 87. Kc6 {[%clk 0:00:07.8]} 87... Ne3 {[%clk 0:00:05.9]} 88. Qc5+
{[%clk 0:00:07.5]} 88... Ke4 {[%clk 0:00:06.5]} 89. Kd6 {[%clk 0:00:07.4]} 89...
Nf5+ {[%clk 0:00:06.8]} 90. Ke6 {[%clk 0:00:07.7]} 90... Nd4+ {[%clk 0:00:07.3]}
91. Kf6 {[%clk 0:00:08.3]} 91... Nf3 {[%clk 0:00:06]} 92. Qc6+ {[%clk 0:00:08]}
92... Kf4 {[%clk 0:00:05.8]} 93. Qc4+ {[%clk 0:00:08.6]} 93... Ke3 {[%clk
0:00:06.3]} 94. Kf5 {[%clk 0:00:08.5]} 94... Nd4+ {[%clk 0:00:06.4]} 95. Ke5
{[%clk 0:00:08.9]} 95... Nf3+ {[%clk 0:00:05.7]} 96. Kd5 {[%clk 0:00:09.5]}
96... Kf2 {[%clk 0:00:04.4]} 97. Qc3 {[%clk 0:00:09.1]} 97... Nh4 {[%clk
0:00:02.6]} 98. Ke4 {[%clk 0:00:07.5]} 98... Ng2 {[%clk 0:00:02.8]} 99. Qf3+
{[%clk 0:00:07.2]} 99... Kg1 {[%clk 0:00:03.4]} 100. Qe2 {[%clk 0:00:06.9]}
100... Kh2 {[%clk 0:00:02]} 101. Kf3 {[%clk 0:00:06.6]} 101... Kh3 {[%clk
0:00:02.6]} 102. Qxg2+ {[%clk 0:00:06.9]} 1-0

[Event "Early-Titled-Tuesday-Blitz-January-16-2024"]
[Site "Chess.com"]
[Date "2024.01.16"]
[Round "1"]
[White "Real_taiatai"]
[Black "mbojan"]
[Result "1/2-1/2"]
[WhiteElo "2495"]
[BlackElo "2891"]
[TimeControl "180+1"]
[EndTime "8:10:23 PST"]
[Termination "Game drawn by 50-move rule"]

1. e4 {[%clk 0:03:00.9]} 1... a6 {[%clk 0:03:00.1]} 2. d4 {[%clk 0:03:00.7]}
2... e6 {[%clk 0:03:00.5]} 3. Nc3 {[%clk 0:03:01.1]} 3... d5 {[%clk 0:03:01]} 4.
e5 {[%clk 0:03:00.5]} 4... c5 {[%clk 0:02:57.7]} 5. dxc5 {[%clk 0:02:57.1]} 5...
Bxc5 {[%clk 0:02:54.7]} 6. Nf3 {[%clk 0:02:57.6]} 6... Nc6 {[%clk 0:02:54.3]} 7.
Bd3 {[%clk 0:02:53.7]} 7... Qc7 {[%clk 0:02:50.8]} 8. Qe2 {[%clk 0:02:52.3]}
8... Nge7 {[%clk 0:02:50.2]} 9. O-O {[%clk 0:02:38.9]} 9... Ng6 {[%clk
0:02:45.5]} 10. Re1 {[%clk 0:02:39.3]} 10... Nd4 {[%clk 0:02:39.8]} 11. Nxd4
{[%clk 0:02:38.9]} 11... Bxd4 {[%clk 0:02:40.7]} 12. Kh1 {[%clk 0:02:12.5]}
12... Nxe5 {[%clk 0:02:07.5]} 13. Nxd5 {[%clk 0:02:09.5]} 13... exd5 {[%clk
0:02:05]} 14. c3 {[%clk 0:01:34.7]} 14... O-O {[%clk 0:01:58]} 15. cxd4 {[%clk
0:01:34.5]} 15... Nxd3 {[%clk 0:01:58.2]} 16. Qxd3 {[%clk 0:01:34.3]} 16... Be6
{[%clk 0:01:58.9]} 17. Bg5 {[%clk 0:01:31.5]} 17... Rac8 {[%clk 0:01:57.6]} 18.
Rac1 {[%clk 0:01:25.4]} 18... Qb6 {[%clk 0:01:57.9]} 19. b3 {[%clk 0:01:19.3]}
19... Qa5 {[%clk 0:01:55.4]} 20. Qd2 {[%clk 0:01:12.6]} 20... Qa3 {[%clk
0:01:52]} 21. Bf4 {[%clk 0:01:03.8]} 21... h6 {[%clk 0:01:44.5]} 22. Be5 {[%clk
0:01:03]} 22... Bf5 {[%clk 0:01:32.4]} 23. h4 {[%clk 0:00:53.5]} 23... Bg6
{[%clk 0:01:26.2]} 24. Kh2 {[%clk 0:00:29.5]} 24... Kh7 {[%clk 0:01:23.4]} 25.
g3 {[%clk 0:00:28.4]} 25... Rfe8 {[%clk 0:01:23.3]} 26. g4 {[%clk 0:00:26.6]}
26... f6 {[%clk 0:01:20.9]} 27. h5 {[%clk 0:00:23.6]} 27... Be4 {[%clk
0:00:44.7]} 28. Bf4 {[%clk 0:00:24.1]} 28... Kg8 {[%clk 0:00:35.4]} 29. Rxc8
{[%clk 0:00:22.8]} 29... Rxc8 {[%clk 0:00:35.3]} 30. Rc1 {[%clk 0:00:23.5]}
30... Rxc1 {[%clk 0:00:33.2]} 31. Qxc1 {[%clk 0:00:24.4]} 31... Qxa2 {[%clk
0:00:34]} 32. Qe3 {[%clk 0:00:22.8]} 32... Qc2 {[%clk 0:00:30.7]} 33. Kg3 {[%clk
0:00:22.8]} 33... Kh7 {[%clk 0:00:20.7]} 34. f3 {[%clk 0:00:23.1]} 34... Bd3
{[%clk 0:00:21.3]} 35. b4 {[%clk 0:00:20.9]} 35... Qd1 {[%clk 0:00:15.7]} 36.
Bd6 {[%clk 0:00:20.4]} 36... Qf1 {[%clk 0:00:12.1]} 37. Bf8 {[%clk 0:00:18.1]}
37... Be2 {[%clk 0:00:04.4]} 38. Qf2 {[%clk 0:00:11.2]} 38... Qd1 {[%clk
0:00:04.7]} 39. Qe3 {[%clk 0:00:11.1]} 39... Qe1+ {[%clk 0:00:05.1]} 40. Qf2
{[%clk 0:00:10.5]} 40... Qd2 {[%clk 0:00:05.7]} 41. Bd6 {[%clk 0:00:10.1]} 41...
Qd3 {[%clk 0:00:05.6]} 42. Bf4 {[%clk 0:00:09.6]} 42... Bd1 {[%clk 0:00:05]} 43.
Qe3 {[%clk 0:00:10.1]} 43... Qf1 {[%clk 0:00:05]} 44. Bd6 {[%clk 0:00:10.8]}
44... Qe2 {[%clk 0:00:03.4]} 45. Qxe2 {[%clk 0:00:10.9]} 45... Bxe2 {[%clk
0:00:04.3]} 46. Kf4 {[%clk 0:00:11.6]} 46... Bd1 {[%clk 0:00:04.6]} 47. Bc5
{[%clk 0:00:12]} 47... Kg8 {[%clk 0:00:03.6]} 48. Bb6 {[%clk 0:00:12.7]} 48...
Kf7 {[%clk 0:00:04]} 49. Ke3 {[%clk 0:00:13.6]} 49... g5 {[%clk 0:00:02.7]} 50.
Bd8 {[%clk 0:00:12.9]} 50... Ke6 {[%clk 0:00:02.5]} 51. Kf2 {[%clk 0:00:12.4]}
51... f5 {[%clk 0:00:02.5]} 52. Kg3 {[%clk 0:00:11.7]} 52... fxg4 {[%clk
0:00:02.2]} 53. fxg4 {[%clk 0:00:11.9]} 53... Kf7 {[%clk 0:00:03]} 54. Bc7
{[%clk 0:00:12.1]} 54... Ke7 {[%clk 0:00:03.3]} 55. Be5 {[%clk 0:00:12.5]} 55...
b6 {[%clk 0:00:02.9]} 56. Bg7 {[%clk 0:00:12.6]} 56... a5 {[%clk 0:00:03.1]} 57.
bxa5 {[%clk 0:00:12.9]} 57... bxa5 {[%clk 0:00:03.5]} 58. Bxh6 {[%clk
0:00:13.8]} 58... Kf6 {[%clk 0:00:04.3]} 59. Bf8 {[%clk 0:00:14.1]} 59... a4
{[%clk 0:00:05]} 60. Ba3 {[%clk 0:00:14.4]} 60... Kf7 {[%clk 0:00:05.3]} 61. Bc1
{[%clk 0:00:13.1]} 61... Kf6 {[%clk 0:00:05.3]} 62. Ba3 {[%clk 0:00:13.5]} 62...
Bc2 {[%clk 0:00:05.9]} 63. Bc1 {[%clk 0:00:14]} 63... Be4 {[%clk 0:00:06.3]} 64.
Kf2 {[%clk 0:00:14.3]} 64... Bd3 {[%clk 0:00:06.1]} 65. Ke3 {[%clk 0:00:14.8]}
65... Bc4 {[%clk 0:00:06.9]} 66. Kf3 {[%clk 0:00:15]} 66... Bb5 {[%clk
0:00:07.2]} 67. h6 {[%clk 0:00:14.8]} 67... Bd3 {[%clk 0:00:06.3]} 68. Ke3
{[%clk 0:00:14.1]} 68... Bh7 {[%clk 0:00:06.5]} 69. Kd2 {[%clk 0:00:14.4]} 69...
Be4 {[%clk 0:00:06.4]} 70. Kc3 {[%clk 0:00:14.9]} 70... Kg6 {[%clk 0:00:06.2]}
71. h7 {[%clk 0:00:13.7]} 71... Kxh7 {[%clk 0:00:06.7]} 72. Bxg5 {[%clk
0:00:12.3]} 72... Bf3 {[%clk 0:00:06.6]} 73. Kb4 {[%clk 0:00:11.5]} 73... Bd1
{[%clk 0:00:07.4]} 74. Bf6 {[%clk 0:00:10.3]} 74... Kg6 {[%clk 0:00:07.9]} 75.
g5 {[%clk 0:00:11]} 75... Kf5 {[%clk 0:00:08.8]} 76. Ka3 {[%clk 0:00:11.7]}
76... Bb3 {[%clk 0:00:09]} 77. Kb2 {[%clk 0:00:12.6]} 77... Bc4 {[%clk
0:00:09.1]} 78. Ka1 {[%clk 0:00:13.5]} 78... a3 {[%clk 0:00:09.1]} 79. Kb1
{[%clk 0:00:13.3]} 79... a2+ {[%clk 0:00:09.6]} 80. Ka1 {[%clk 0:00:14.2]} 80...
Kg6 {[%clk 0:00:10.3]} 81. Be7 {[%clk 0:00:13.8]} 81... Bb3 {[%clk 0:00:11.2]}
82. Bf6 {[%clk 0:00:14.6]} 82... Kf7 {[%clk 0:00:11.7]} 83. Kb2 {[%clk
0:00:15.5]} 83... Ke6 {[%clk 0:00:11.3]} 84. Ka1 {[%clk 0:00:16.4]} 84... Bc2
{[%clk 0:00:11.9]} 85. Kb2 {[%clk 0:00:17]} 85... Bb1 {[%clk 0:00:12.2]} 86. Ka1
{[%clk 0:00:17.4]} 86... Kd7 {[%clk 0:00:12.8]} 87. Kb2 {[%clk 0:00:18.3]} 87...
Ke6 {[%clk 0:00:12.5]} 88. Ka1 {[%clk 0:00:19.2]} 88... Kd6 {[%clk 0:00:13.2]}
89. Be5+ {[%clk 0:00:19.6]} 89... Kd7 {[%clk 0:00:12]} 90. g6 {[%clk 0:00:20.5]}
90... Bxg6 {[%clk 0:00:12]} 91. Kxa2 {[%clk 0:00:20.8]} 91... Kc6 {[%clk
0:00:12.9]} 92. Kb3 {[%clk 0:00:21.6]} 92... Kb5 {[%clk 0:00:13.8]} 93. Kc3
{[%clk 0:00:22.5]} 93... Bh7 {[%clk 0:00:14.4]} 94. Kd2 {[%clk 0:00:23.4]} 94...
Kc4 {[%clk 0:00:14.9]} 95. Ke3 {[%clk 0:00:24.3]} 95... Bg6 {[%clk 0:00:15.6]}
96. Kf4 {[%clk 0:00:25.2]} 96... Be4 {[%clk 0:00:16.1]} 97. Kg5 {[%clk
0:00:26.1]} 97... Kd3 {[%clk 0:00:16.7]} 98. Kf6 {[%clk 0:00:27]} 98... Ke3
{[%clk 0:00:17.5]} 99. Ke7 {[%clk 0:00:27.5]} 99... Kf3 {[%clk 0:00:18.4]} 100.
Kd6 {[%clk 0:00:28.3]} 100... Kg2 {[%clk 0:00:19.2]} 101. Kc5 {[%clk 0:00:29.2]}
101... Kh1 {[%clk 0:00:20.1]} 102. Kd6 {[%clk 0:00:30.1]} 102... Kg1 {[%clk
0:00:21]} 103. Kc5 {[%clk 0:00:30.9]} 103... Kf1 {[%clk 0:00:21.9]} 104. Kd6
{[%clk 0:00:30.8]} 104... Ke1 {[%clk 0:00:22.8]} 105. Kc5 {[%clk 0:00:31.7]}
105... Kd1 {[%clk 0:00:23.7]} 106. Kd6 {[%clk 0:00:32.4]} 106... Kc1 {[%clk
0:00:24.6]} 107. Kc5 {[%clk 0:00:33.3]} 107... Kc2 {[%clk 0:00:25.5]} 108. Kd6
{[%clk 0:00:34.2]} 108... Kb1 {[%clk 0:00:26.4]} 109. Kc5 {[%clk 0:00:35.1]}
109... Ka2 {[%clk 0:00:27.3]} 110. Kd6 {[%clk 0:00:36]} 110... Kb3 {[%clk
0:00:28.2]} 111. Kc5 {[%clk 0:00:36.5]} 111... Ka4 {[%clk 0:00:29.1]} 112. Kd6
{[%clk 0:00:37.4]} 112... Kb5 {[%clk 0:00:30]} 113. Ke7 {[%clk 0:00:37.7]}
113... Ka6 {[%clk 0:00:30.9]} 114. Kf6 {[%clk 0:00:38.6]} 114... Kb7 {[%clk
0:00:31.8]} 115. Kg5 {[%clk 0:00:39.5]} 115... Kc8 {[%clk 0:00:32.7]} 116. Kh4
{[%clk 0:00:40.4]} 116... Kd8 {[%clk 0:00:33.6]} 117. Kg5 {[%clk 0:00:41.3]}
117... Ke8 {[%clk 0:00:34.5]} 118. Kh4 {[%clk 0:00:42.2]} 118... Kf8 {[%clk
0:00:35.4]} 119. Kg5 {[%clk 0:00:43]} 119... Kg8 {[%clk 0:00:36.3]} 120. Kh4
{[%clk 0:00:43.9]} 120... Kh7 {[%clk 0:00:37.2]} 121. Kh5 {[%clk 0:00:44.8]}
121... Kg8 {[%clk 0:00:36]} 122. Kg4 {[%clk 0:00:45.7]} 122... Kf8 {[%clk
0:00:36.9]} 123. Kf4 {[%clk 0:00:46.6]} 123... Ke7 {[%clk 0:00:37.8]} 124. Ke3
{[%clk 0:00:47.5]} 124... Kd7 {[%clk 0:00:38.7]} 125. Kd2 {[%clk 0:00:48.4]}
125... Kc6 {[%clk 0:00:39.6]} 126. Kc3 {[%clk 0:00:49.3]} 126... Kb5 {[%clk
0:00:40.4]} 127. Kd2 {[%clk 0:00:49.4]} 127... Ka5 {[%clk 0:00:41.3]} 128. Ke3
{[%clk 0:00:50.3]} 128... Ka6 {[%clk 0:00:42.2]} 129. Kf4 {[%clk 0:00:50.9]}
129... Ka7 {[%clk 0:00:43.1]} 130. Kg5 {[%clk 0:00:51.8]} 130... Ka8 {[%clk
0:00:44]} 131. Kf6 {[%clk 0:00:52.7]} 131... Kb7 {[%clk 0:00:44.9]} 132. Bd6
{[%clk 0:00:53.4]} 132... Kc8 {[%clk 0:00:45.8]} 133. Ke5 {[%clk 0:00:54.3]}
133... Kd7 {[%clk 0:00:46.7]} 134. Bc5 {[%clk 0:00:55.1]} 134... Kd8 {[%clk
0:00:47.6]} 135. Kf4 {[%clk 0:00:55.7]} 135... Ke8 {[%clk 0:00:48.5]} 136. Ke3
{[%clk 0:00:56.6]} 136... Kf7 {[%clk 0:00:49.4]} 137. Kf4 {[%clk 0:00:57.5]}
137... Kg6 {[%clk 0:00:50.3]} 138. Ke3 {[%clk 0:00:58.4]} 138... Kh5 {[%clk
0:00:51.2]} 139. Kf4 {[%clk 0:00:59.3]} 139... Kh4 {[%clk 0:00:52.1]} 140. Ke3
{[%clk 0:01:00.2]} 140... Kh3 {[%clk 0:00:53]} 141. Kf4 {[%clk 0:01:00]} 1/2-1/2